Workbook

Sheet Лист1

Sheet Лист2

Sheet Лист3
C1: Приложение № 2
C2: к решению Совета депутатов
C3: Никольского городского поселения
C4: Тосненского района Ленинградской области
C5: от 12 .02.2013 № 210
C7: Приложение № 6
C8: к решению Совета депутатов
C9: Никольского городского поселения
C10: Тосненского района Ленинградской области
C11: от 11 декабря2012 № 199
B12: Распределение бюджетных ассигнований
B13: по разделам, подразделам, целевым статьям и видам расходов классификации расходов
B14: бюджета на 2013 год
F15: (тысяч рублей)
A16: № | C16: Рз раздел | D16: ПР подраздел | E16: ЦСР целевая статья | F16: ВР вид расхода | G16: 2013 год
B17: ИТОГО | G17: =SUM(G18+G39+G43+G51+G62+G86+G90+G97+G106+G112) -> 198822.247
A18: 1 | B18: Общегосударственные расходы | G18: =SUM(G19) -> 29026.319
B19: Функционирование Правительства Российской Федерации,высших органов исполнительной власти субъектов Российской Федерации,местных администраций | C19: 0100 | G19: =SUM(G20+G25+G26+G31+G35) -> 29026.319
B20: Руководство и управление в сфере установленных функций органов государственной власти субъекта Российской Федерации и органов местного самоуправления | C20: 0100 | D20: 0104 | E20: 002 00 00 | G20: =SUM(G21+G23) -> 19817.12
B21: Центральный аппарат | C21: 0100 | D21: 0104 | E21: 002 04 00 | G21: =SUM(G22) -> 18697.12
B22: Выполнение функций органами местного самоуправления | C22: 0100 | D22: 0104 | E22: 002 04 00 | F22: 500 | G22: 18697.12
B23: Глава местной администрации | C23: 0100 | D23: 0104 | E23: 002 08 00 | G23: =SUM(G24) -> 1120
B24: Выполнение функций органами местного самоуправления | C24: 0100 | D24: 0104 | E24: 002 08 00 | F24: 500 | G24: 1120
B25: Выполнение ОГП в сфере профилактики и правонарушений несовершеннолетних | C25: 0100 | D25: 0104 | E25: 521 02 02 | F25: 500 | G25: 527.379
B26: Иные межбюджетные трансферты бюджетам муниципальных районов из бюджетов поселений на осуществление части полномочий по решению вопросов местного значения | C26: 0100 | D26: 0104 | E26: 521 06 00 | F26: 017 | G26: =SUM(G27:G30) -> 1164.968
B27: Иные межбюджетные трансферты для осуществления полномочий на решение вопросов межмуниципального характера в сфере исполнения бюджета | C27: 0100 | D27: 0104 | E27: 521 06 60 | F27: 017 | G27: 385
B28: Иные межбюджетные трансферты для осуществления полномочий на решение вопросов межмуниципального характера по организации в границах поселений теплоснабжения(гор.водоснабжение, отопление) в части формирования статистической отчетности | C28: 0100 | D28: 0104 | E28: 521 06 62 | F28: 017 | G28: 129.3
B29: Иные межбюджетные трансферты для осуществления полномочий на решение вопросов межмуниципального характера в сфере архивного дела | C29: 0100 | D29: 0104 | E29: 521 05 65 | F29: 502 | G29: 251.5
B30: Иные межбюджетные трансферты на осуществление части отдельных полномочий по осуществлению внешнего муниципального контроля | C30: 0100 | D30: 0106 | E30: 521 06 64 | F30: 017 | G30: 399.168
B31: Резервные фонды | C31: 0100 | D31: 0111 | G31: =SUM(G32) -> 3150
B32: Резервные фонды | C32: 0100 | D32: 0111 | E32: 070 00 00 | G32: =SUM(G33) -> 3150
B33: Резервные фонды местных администраций | C33: 0100 | D33: 0111 | E33: 070 05 00 | G33: =SUM(G34) -> 3150
B34: Прочие расходы | C34: 0100 | D34: 0111 | E34: 070 05 00 | F34: 013 | G34: 3150
B35: Другие общегосударственные вопросы | C35: 0100 | D35: 0113 | G35: =SUM(G36) -> 4366.852
B36: Реализация государственных функций,связанных с общегосударственным управлением | C36: 0100 | D36: 0113 | E36: 0920000 | G36: =SUM(G37) -> 4366.852
B37: Выполнение других обязательств государства | C37: 0100 | D37: 0113 | E37: 0920300 | G37: =SUM(G38) -> 4366.852
B38: Выполнение функций органами местного самоуправления | C38: 0100 | D38: 0113 | E38: 0920300 | F38: 500 | G38: 4366.852
A39: 2 | B39: Национальная оборона | C39: 0200 | D39: 0 | G39: =SUM(G40) -> 1095.848
B40: Мобилизационная и вневойсковая подготовка | C40: 0200 | D40: 0203 | G40: =SUM(G41) -> 1095.848
B41: Осуществление первичного воинского учета, где отсутвтвуют военные комиссариаты | C41: 0200 | D41: 0203 | E41: 001 36 00 | G41: =SUM(G42) -> 1095.848
B42: Выполнение функций органами местного самоуправления | C42: 0200 | D42: 0203 | E42: 001 36 00 | F42: 500 | G42: 1095.848
A43: 3 | B43: Национальная безопасность и правоохранительная деятельность | C43: 0300 | D43: 0 | G43: =SUM(G44+G48) -> 910
B44: Защита населения и территории от чрезвычайных ситуаций природного и техногенного характера, гражданская оборона | C44: 0300 | D44: 0309 | G44: =SUM(G45) -> 140
B45: Мероприятия по предупреждению и ликвидации последствий чрезвычайных ситуаций и стихийных бедствий | C45: 0300 | D45: 0309 | E45: 218 00 00 | G45: =SUM(G46) -> 140
B46: Предупреждение и ликвидация последствий чрезвычайных ситуаций и стихийных бедствий | C46: 0300 | D46: 0309 | E46: 218 01 00 | G46: =SUM(G47) -> 140
B47: Выполнение функций органами местного самоуправления | C47: 0300 | D47: 0309 | E47: 218 01 00 | F47: 500 | G47: 140
B48: Обеспечение пожарной безопасности | C48: 0300 | D48: 0310 | G48: =SUM(G50) -> 770
B49: Программа"Пожарная безопасность на территории Никольского городского поселенияТосненского района Ленинградской области | C49: 0300 | D49: 0310 | E49: 7950004 | G49: =SUM(G50) -> 770
B50: Выполнение функций органами местного самоуправления | C50: 0300 | D50: 0310 | E50: 7950004 | F50: 500 | G50: 770
A51: 4 | B51: Национальная экономика | C51: 0400 | G51: =SUM(G55+G52+G60) -> 17487
B52: Дорожное хозяйство | C52: 0400 | D52: 0409 | G52: =SUM(G53) -> 15587
B53: Программа " Обеспечение безопасности дорожного движения на территорииНикольского городского поселения ТР ЛО | C53: 0400 | D53: 0409 | E53: 7950005 | F53: 500 | G53: =SUM(G54) -> 15587
B54: Выполнение функций органами местного самоуправления | C54: 0400 | D54: 0409 | E54: 7950005 | F54: 500 | G54: 15587
B55: Другие вопросы в области национальной экономики | C55: 0400 | D55: 0412 | G55: =SUM(G56+G58) -> 1500
B56: Мероприятия в области строительства,архитектуры и градостроительства | C56: 0400 | D56: 0412 | E56: 338 00 00 | G56: =SUM(G57) -> 1300
B57: Выполнение функций органами местного самоуправления | C57: 0400 | D57: 0412 | E57: 338 00 00 | F57: 500 | G57: 1300
B58: Мероприятия по землеустройству и землепользованию | C58: 0400 | D58: 0412 | E58: 340 03 00 | G58: =SUM(G59) -> 200
B59: Выполнение функций органами местного самоуправления | C59: 0400 | D59: 0412 | E59: 340 03 00 | F59: 500 | G59: 200
B60: Мероприятия в обасти экологической безопасности | C60: 0400 | D60: 0412 | E60: 340 04 00 | G60: =SUM(G61) -> 400
B61: Выполнение функций органами местного самоуправления | C61: 0400 | D61: 0412 | E61: 340 04 00 | F61: 500 | G61: 400
A62: 5 | B62: Жилищно-коммунальное хозяйство | C62: 0500 | D62: 0 | G62: =SUM(G63+G69+G79) -> 113263
B63: Жилищное хозяйство | C63: 0500 | D63: 0501 | G63: =SUM(G65+G66) -> 28514.48
B64: Мероприятия в обасти жилищного хозяйства | C64: 0500 | D64: 0501 | E64: 350 03 00 | G64: =SUM(G65) -> 8514.48
B65: Выполнение функций органами местного самоуправления | C65: 0500 | D65: 0501 | E65: 350 03 00 | F65: 500 | G65: 8514.48
B66: Целевые программы муниципальных образований | C66: 0500 | D66: 0501 | E66: 795 00 00 | G66: =SUM(G67:G68) -> 20000
B67: Программа по проведению капитального ремонта многоквартирных домов, расположенных на территории Никольского городского поселения Тосненского района Ленинградской области | C67: 0500 | D67: 0501 | E67: 795 00 01 | G67: 8000
B68: Программа проведения капитального ремонта лифтов жилого фонда | C68: 0500 | D68: 0501 | E68: 795 00 03 | G68: 12000
B69: Коммунальное хозяйство | C69: 0500 | D69: 0502 | G69: =SUM(G70+G77) -> 20800
B70: Поддержка коммунального хозяйства | C70: 0500 | D70: 0502 | E70: 351 00 00 | G70: =SUM(G74+G75+G71) -> 15800
B71: Компенсация выпадающих доходов организациям, предоставляющим населению услуги (сжиженный газ) | C71: 0500 | D71: 0502 | E71: 351 05 00 | F71: 006 | G71: =SUM(G72) -> 500
B72: Субсидии юридическим лицам | C72: 0500 | D72: 0502 | E72: 351 05 00 | F72: 006 | G72: 500
B73: Компенсация выпадающих доходов организациям, предоставляющим населению услуги (бани) | C73: 0500 | D73: 0502 | E73: 351 05 00 | F73: 500 | G73: =SUM(G74) -> 900
B74: Субсидии юридическим лицам | C74: 0500 | D74: 0502 | E74: 351 05 00 | F74: 500 | G74: 900
B75: Мероприятия в области коммунального хозяйства | C75: 0500 | D75: 0502 | E75: 351 05 00 | G75: =SUM(G76) -> 14400
B76: Выполнение функций органами местного самоуправления | C76: 0500 | D76: 0502 | E76: 351 05 00 | F76: 500 | G76: 14400
B77: Целевая программа газификации Никольского городского поселения мкр. "Перевоз","Белая дача" | C77: 0500 | D77: 0502 | E77: 795 00 02 | F77: 003 | G77: =SUM(G78) -> 5000
B78: Выполнение функций органами местного самоуправления | C78: 0500 | D78: 0502 | E78: 795 00 02 | F78: 003 | G78: 5000
B79: Благоустройство | C79: 0500 | D79: 0503 | G79: =SUM(G80) -> 63948.52
B80: Благоустройство | C80: 0500 | D80: 0503 | E80: 600 00 00 | G80: =SUM(G85+G81+G84+G82) -> 63948.52
B81: Уличное освещение | C81: 0500 | D81: 0503 | E81: 600 01 00 | F81: 500 | G81: 6900
B82: Содержание автомобильных дорог и инженерных сооружений на них в границах городских округов и поселений в рамках благоустройства | C82: 0500 | D82: 0503 | E82: 600 02 00 | G82: =SUM(G83) -> 3000
B83: Мероприятия по благоустройству, механизированная уборка | C83: 0500 | D83: 0503 | E83: 600 02 02 | F83: 500 | G83: 3000
B84: Озеленение | C84: 0500 | D84: 0503 | E84: 600 03 00 | F84: 500 | G84: 1948.52
B85: Прочие мероприятия по благоустройству городских поселений | C85: 0500 | D85: 0503 | E85: 600 05 00 | F85: 500 | G85: 52100
A86: 6 | B86: Образование | G86: =SUM(G89) -> 982.2
B87: Молодежная политика и оздоровление детей | C87: 0700 | D87: 0707 | G87: =SUM(G89) -> 982.2
B88: Программа "Реализация молодежной политики в Никольском городском поселении Тосненского района Ленинградской области | C88: 0700 | D88: 0707 | E88: 795 00 06 | G88: =SUM(G89) -> 982.2
B89: Выполнение функций органами местных самоуправлений | C89: 0700 | D89: 0707 | E89: 795 00 06 | F89: 500 | G89: 982.2
A90: 7 | B90: Культура и кинематография | C90: 0800 | D90: 0 | G90: =SUM(G91) -> 15838
B91: Культура | C91: 0800 | D91: 0801 | G91: =SUM(G92) -> 15838
B92: Дворцы и дома культуры, другие учреждения культуры | C92: 0800 | D92: 0801 | E92: 440 00 00 | G92: =SUM(G93) -> 15838
B93: Обеспечение деятельности подведомственных учреждений | C93: 0800 | D93: 0801 | E93: 440 99 00 | G93: =SUM(G94) -> 15838
B94: Выполнение функций бюджетными учреждениями | C94: 0800 | D94: 0801 | E94: 440 99 00 | F94: 001 | G94: =SUM(G95:G96) -> 15838
B95: МКУ "Никольский дом культуры" | C95: 0800 | D95: 0801 | E95: 440 99 00 | F95: 001 | G95: 15288
B96: МКУ "Никольский дом культуры"(расходы за счет платных услуг и неналоговых доходов) | C96: 0800 | D96: 0801 | E96: 440 99 99 | F96: 001 | G96: 550
A97: 8 | B97: Социальная политика | C97: 1000 | D97: 0 | G97: =SUM(G104+G102+G98) -> 2025.88
B98: Пенсионное обеспечение | C98: 1000 | D98: 1001 | G98: =SUM(G101) -> 275.88
B99: Доплаты к пенсия, дополнительное пенсионное обеспечение | C99: 1000 | D99: 1001 | E99: 4910000 | G99: =SUM(G100) -> 275.88
B100: Доплаты к пенсиям государственных служащих субъектов РФ и муниципальных служащих | C100: 1000 | D100: 1001 | E100: 4910000 | G100: =SUM(G101) -> 275.88
B101: Социальные выплаты | C101: 1000 | D101: 1001 | E101: 491 01 00 | F101: 005 | G101: 275.88
B102: Социальное обеспечение населения | C102: 1000 | D102: 1003 | E102: 505 48 00 | G102: =SUM(G103) -> 1650
B103: Предоставление субсидий на оплату жилого помещения и коммунальных услуг отдельных категорий граждан поселения | C103: 1000 | D103: 1003 | E103: 505 48 00 | F103: 005 | G103: 1650
B104: Оказание других видов социальной помощи | C104: 1000 | D104: 1003 | E104: 505 86 00 | G104: =SUM(G105) -> 100
B105: Социальные выплаты | C105: 1000 | D105: 1003 | E105: 505 86 00 | F105: 005 | G105: 100
A106: 9 | B106: Физическая культура и спорт | C106: 1100 | D106: 0 | G106: =SUM(G107) -> 17394
B107: Физическая культура | C107: 11000 | D107: 1101 | G107: =SUM(G108) -> 17394
B108: Обеспечение деятельности подведомственных учреждений | C108: 11000 | D108: 1101 | E108: 482 99 00 | G108: =SUM(G109) -> 17394
B109: Выполнение функций бюджетными учреждениями | C109: 11000 | D109: 1101 | E109: 482 99 00 | F109: 001 | G109: =SUM(G110:G111) -> 17394
B110: МКУ "Спортивно-досуговый центр "Надежда" | C110: 11000 | D110: 1101 | E110: 482 99 00 | F110: 001 | G110: 16844
B111: МКУ "Спортивно-досуговый центр "Надежда"(расходы за счет платных услуг и неналоговых доходов) | C111: 11000 | D111: 1101 | E111: 482 99 99 | F111: 001 | G111: 550
A112: 10 | B112: Средства массовой информации | C112: 1200 | G112: =SUM(G113) -> 800
B113: Периодическая печать и издательства | C113: 1200 | D113: 1202 | G113: =SUM(G114) -> 800
B114: Периодические издания, учрежденные органами законодательной и исполнительной власти | C114: 1200 | D114: 1202 | E114: 4570000 | G114: =SUM(G116) -> 800
B115: Государственная поддержка в сфере средств массовой информации | C115: 1200 | D115: 1202 | E115: 4578500 | G115: =SUM(G116) -> 800
B116: Выполнение функций органами местного самоуправления | C116: 1200 | D116: 1202 | E116: 4578500 | F116: 500 | G116: 800
